{"text_format":"1","workbook":"xlsx","n_sheets":2,"sheets":["Spielplan","Konfig"],"not_rendered":{"charts":0,"images":1,"macros":1,"external_links":0,"defined_names":3,"comments":0,"pivot_tables":0},"unopened":[],"bounds":{"document_bytes":16777216,"sheet_cells":100000,"rows_first":2000,"rows_last":500,"rows_between":2000,"halvings":0,"cell_chars":16384,"cell_head_chars":4096},"cells_cut":0,"cells_raw":0,"read":"whole","date_system":"1900"}

{"sheet":"Spielplan","index":0,"n_rows":36,"n_cols":47,"rows_kept":36,"cut":false,"hidden":false,"merged":[[34,4,34,8],[32,32,32,41],[33,32,33,41],[32,13,32,17],[32,23,32,27],[2,4,2,9],[2,14,2,18],[2,23,2,27],[2,32,2,36],[2,41,2,45]]}
[null,null,null,null,null,null,null,null,null,null,null,null,null,null,null,null,null,null,null,null,null,null,null,null,null,null,null,null,null,null,null,null,null,null,null,null,null,{"$f":"COLUMN()","v":38},{"$f":"COLUMN()","v":39},{"$f":"COLUMN()","v":40},40]
[null,null,null,null,null,null,null,null,null,10]
[null,null,null,"Solopiping","Grad 5",null,null,null,null,null,null,null,null,null,"Grad 4",null,null,null,null,null,null,null,null,"Grad 3",null,null,null,null,null,null,null,null,"Grad 2",null,null,null,null,null,null,null,null,"Grad 1",null,null,null,null,"Platz"]
[null,null,null,null,"Slow Air",null,null,null,"March",null,null,null,null,"Strathspey Reel","6/8 March",null,null,null,"2/4 March",null,null,null,null,"MSR",null,null,null,"HP/Jig",null,null,null,null,"MSR",null,null,null,"HP/Jig",null,null,null,null,"MSR",null,null,null,"HP/Jig"]
[null,"Gruppen"]
[null,1,1,"Katharina KÖNIG",0.52083333333333337,true,{"$f":"IF(F6=TRUE,1,\"\")","v":1},1,0.54027777777777775,true,{"$f":"IF(J6=TRUE,1,\"\")","v":1},1]
[null,1,2,"Mathieu FINKE",0.52569444444444446,true,{"$f":"IF(F7=TRUE,1,\"\")","v":1},1,0.54513888888888895,true,{"$f":"IF(J7=TRUE,1,\"\")","v":1},1]
[null,1,3,"Julia WANDT",0.53055555555555556,true,1,1,0.54999999999999993,true,{"$f":"IF(J8=TRUE,1,\"\")","v":1},1]
[null,1,4,"Jutta FINKELMEIER",0.53541666666666665,true,1,1,0.55486111111111114,true,{"$f":"IF(J9=TRUE,1,\"\")","v":1},1]
[null,1,5,"Colin BEGERO",null,false,"",null,0.55972222222222223,true,{"$f":"IF(J10=TRUE,1,\"\")","v":1},1]
[null,null,6,"."]
[null,2,6,"Stefan PAULICK",null,null,null,null,null,null,null,null,null,"13:33:00",null,true,true,"13:33:00",null,true,true,1]
[null,2,7,"Daniel GERMANN",null,null,null,null,null,null,null,null,null,"13:40:00","14:08:00",true,true,"13:40:00","14.36",true,true,1]
[null,2,8,"Alan GERMANN",null,null,null,null,null,null,null,null,null,"13:47:00","14:15:00",true,true,"13:47:00","14:43:00",true,true,1]
[null,null,9,"Ruedi BERLINGER",null,null,null,null,null,null,null,null,null,"13:54:00","14:22:00",null,null,null,"14:50:00"]
[null,2,10,"Robert GUNTER",null,null,null,null,null,null,null,null,null,"14:01:00","14:29:00",null,null,null,"14:57:00",false,false]
[null,null,11,".",null,null,null,null,null,null,null,null,null,null,null,null,null,"13:33:00"]
[null,3,11,"Marius HELD",null,null,null,null,null,null,null,null,null,null,null,null,null,null,null,null,null,null,null,"15:04:00",true,true,"13:33:00","15:25:00",true,true,1]
[null,3,12,"Dominik BROGER",null,null,null,null,null,null,null,null,null,null,null,null,null,null,null,null,null,null,null,"15:11:00",true,true,"13:40:00","15:32:00",true,true,1]
[null,3,13,"Jan SCHULZ",null,null,null,null,null,null,null,null,null,null,null,null,null,null,null,null,null,null,null,"15:18:00",true,true,"13:47:00","15:39:00",true,true,1]
[null,null,null,null,null,null,null,null,null,null,null,null,null,null,null,null,null,null,null,null,null,null,"13:33:00",null,null,null,"13:33:00"]
[null,4,14,"Martina FEUERSTEIN",null,null,null,null,null,null,null,null,null,null,null,null,null,null,null,null,null,null,null,null,null,null,null,null,null,null,null,null,"15:36:00",true,true,"13:33:00","16:11:00",true,true,1]
[null,null,15,"Miranda GERMANN",null,null,null,null,null,null,null,null,null,null,null,null,null,null,null,null,null,null,null,null,null,null,null,null,null,null,null,null,"15:43:00",true,true,null,"16:18:00"]
[null,null,16,"Thomas KUNZ",null,null,null,null,null,null,null,null,null,null,null,null,null,null,null,null,null,null,null,null,null,null,null,null,null,null,null,null,"15:50:00",null,null,null,"16:25:00"]
[null,4,17,"Monika KÖSTER",null,null,null,null,null,null,null,null,null,null,null,null,null,null,null,null,null,null,null,null,null,null,null,null,null,null,null,null,"15:57:00",false,false,"13:40:00","16:32:00",false,false]
[null,4,18,"Esther SCHEREN",null,null,null,null,null,null,null,null,null,null,null,null,null,null,null,null,null,null,null,null,null,null,null,null,null,null,null,null,"16:04:00",false,false,"13:47:00","16:39:00",true,true,1]
[null,null,null,null,null,null,null,null,null,null,null,null,null,null,null,null,null,null,null,null,null,null,null,null,null,null,null,null,null,null,null,"13:33:00",null,null,null,"13:54:00"]
[]
[]
[]
[]
[null,null,null,"Solodrumming"]
[null,null,null,null,"Beginner Snare",null,null,null,null,null,null,null,null,"Intermediate",null,null,null,null,null,null,null,null,null,"Advanced",null,null,null,null,null,null,null,null,"Former Winner"]
[null,null,null,null,"Esther SCHEREN       14:30"]
[null,null,null,null,"Timo ARNDT             14:40",null,null,null,null,null,null,null,null,null,null,null,null,null,null,null,null,null,null,"Constantin LANGER    14:50",null,null,null,null,null,null,null,null,null,null,null,null,"MSR",null,null,null,null,"HP/Jig"]
[null,null,null,null,null,null,null,null,null,null,null,null,null,null,null,null,null,null,null,null,null,null,null,null,null,null,null,null,null,null,null,null,"Thomas KUNZ",null,null,null,6.666666666666667,null,null,null,null,"16:20:00"]

{"sheet":"Konfig","index":1,"n_rows":42,"n_cols":36,"rows_kept":42,"cut":false,"hidden":false,"merged":[[2,2,2,3],[2,4,2,5],[2,6,2,7],[2,8,2,9],[26,1,41,1]]}
[]
[]
[null,"Zeitplan","Beginner",null,"Intermediate",null,"Advanced",null,"Former Winners"]
[null,null,"Slow Air","March","6/8 March","2/4 March","MSR","HP/Jig","MSR","HP/Jig"]
[null,"Anzahl TN",{"$f":"COUNTIF(Spielplan!$B$6:$B$36,1)","v":5},{"$f":"COUNTIF(Spielplan!$B$6:$B$36,1)","v":5},{"$f":"COUNTIF(Spielplan!$B$6:$B$36,2)","v":4},{"$f":"COUNTIF(Spielplan!$B$6:$B$36,2)","v":4},{"$f":"COUNTIF(Spielplan!$B$6:$B$36,3)","v":3},{"$f":"COUNTIF(Spielplan!$B$6:$B$36,3)","v":3},{"$f":"COUNTIF(Spielplan!$B$6:$B$36,4)","v":3},{"$f":"COUNTIF(Spielplan!$B$6:$B$36,4)","v":3}]
[null,null,6,10,12,16,18,20,22,25]
[null,"Wartezeit",4.8611111111111103E-3]
[null,"Startzeit",0.52083333333333337,{"$f":"IF(MAX(Spielplan!$E$6:$E$36)=0,\"\",MAX(Spielplan!$E$6:$E$36)+$C$7)","v":0.54027777777777775},{"$f":"IF(MAX(Spielplan!$I$6:$I$36)=0,\"\",MAX(Spielplan!$I$6:$I$36)+$C$7)","v":0.56458333333333333},{"$f":"IF(MAX(Spielplan!$O$6:$O$36)=0,\"\",MAX(Spielplan!$O$6:$O$36)+$C$7)","v":0.60833333333333328},{"$f":"IF(MAX(Spielplan!$S$6:$S$36)=0,\"\",MAX(Spielplan!$S$6:$S$36)+$C$7)","v":0.62777777777777777},{"$f":"IF(MAX(Spielplan!$X$6:$X$36)=0,\"\",MAX(Spielplan!$X$6:$X$36)+$C$7)","v":0.64236111111111116},{"$f":"IF(MAX(Spielplan!$AB$6:$AB$36)=0,\"\",MAX(Spielplan!$AB$6:$AB$36)+$C$7)","v":0.65694444444444444},{"$f":"IF(MAX(Spielplan!$AG$6:$AG$36)=0,\"\",MAX(Spielplan!$AG$6:$AG$36)+$C$7)","v":0.67430555555555549}]
[null,"Zeitberechnung",{"$f":"INDEX(Spielplan!E:E,MAX(ISNUMBER(Spielplan!E6:E25)*ROW(Spielplan!E6:E25)))","v":0.53541666666666665},{"$f":"INDEX(Spielplan!I:I,MAX(ISNUMBER(Spielplan!I6:I25)*ROW(Spielplan!I6:I25)))","v":0.55972222222222223},{"$f":"INDEX(Spielplan!O:O,MAX(ISNUMBER(Spielplan!O6:O25)*ROW(Spielplan!O6:NC25)))","v":0.60347222222222219},{"$f":"INDEX(Spielplan!S:S,MAX(ISNUMBER(Spielplan!S6:S25)*ROW(Spielplan!S6:S25)))","v":0.62291666666666667},{"$f":"INDEX(Spielplan!X:X,MAX(ISNUMBER(Spielplan!X6:X25)*ROW(Spielplan!X6:X25)))","v":0.63750000000000007},{"$f":"INDEX(Spielplan!AB:AB,MAX(ISNUMBER(Spielplan!AB6:AB25)*ROW(Spielplan!AB6:AB25)))","v":0.65208333333333335},{"$f":"INDEX(Spielplan!AG:AG,MAX(ISNUMBER(Spielplan!AG6:AG25)*ROW(Spielplan!AG6:AG25)))","v":0.6645833333333333},{"$f":"INDEX(Spielplan!AK:AK,MAX(ISNUMBER(Spielplan!AK6:AK25)*ROW(Spielplan!AK6:AK25)))","v":0.68888888888888899}]
[null,"Max Zeit",{"$f":"MAX(ABS(Spielplan!$E$6:$E$36),ABS(Spielplan!$I$6:$I$36),ABS(Spielplan!$O$6:$O$36),ABS(Spielplan!$S$6:$S$36),ABS(Spielplan!$X$6:$X$36),ABS(Spielplan!$AB$6:$AB$36),ABS(Spielplan!$AG$6:$AG$36),ABS(Spielplan!$AK$6:$AK$36))","v":{"$error":"#VALUE!"}},"E","I","N","R","W","AA","AF"]
[]
[null,"Namen_Chk","chk_1_SA_a","chk_1_MA_b","chk_2_IMa_a","chk_2_IMa_b","chk_3_AMSR_a","chk_3_AMSR_b","chk_4_FWMSR_a","chk_4_FWSR_b"]
[null,"Spalte 1",5,9,14,18,23,27,32,36]
[null,"Spalte 2",7,11,16,20,25,29,34,36,""]
[]
[null,null,null,null,null,null,null,null,null,null,null,null,null,null,null,null,null,null,null,null,null,null,null,null,null,null,null,null,null,null,null,null,null,null,null,"15:58:00"]
[]
[null,null,null,null,null,null,null,null,null,null,null,null,null,null,null,null,null,null,null,null,null,null,null,null,null,null,null,55]
[]
[null,"Beginnerzeile"]
[]
[]
[null,null,null,null,null,null,null,null,null,null,null,null,null,null,null,null,null,null,null,null,null,null,null,null,null,null,null,null,{"$f":"IF(AB23=TRUE,1,\"\")","v":""}]
[]
[]
[]
[null,"vergebene Namen","Minuten_1","Minuten_2"]
[null,null,6.9444444444444447E-4,5]
[null,null,1.3888888888888889E-3,10]
[null,null,2.0833333333333298E-3,15,null,null,null,null,null,null,null,null,null,null,null,null,null,null,null,null,null,null,null,null,null,null,null,null,null,null,null,null,null,null,null,"15:58:00"]
[null,null,2.7777777777777701E-3,20]
[null,null,3.4722222222222199E-3,25]
[null,null,4.1666666666666597E-3,30]
[null,null,4.8611111111111103E-3,35]
[null,null,5.5555555555555497E-3,40]
[null,null,6.2500000000000003E-3,45]
[null,null,6.9444444444444397E-3,50]
[null,null,7.63888888888888E-3,55]
[null,null,8.3333333333333297E-3,60]
[null,null,9.02777777777777E-3,65]
[null,null,9.7222222222222206E-3,70]
[null,null,1.0416666666666701E-2,75]